fUSD/lending_fUSD_20240216
["ID","MTS","AMOUNT","RATE_DAILY","PERIOD"]
[314234943,1708110633415,-172.59291704,0.00028333,2]
[314234944,1708110633425,-177.12,0.00028483,2]
[314234945,1708110633435,-174.53,0.00028822,2]
[314234946,1708110633445,-1000.0,0.00028844,2]
[314234947,1708110633456,-958.78,0.00028934,2]
[314234948,1708110633470,-2314.84760793,0.00029,15]
[314234949,1708110633480,-289.15562755,0.000295,3]
[314234950,1708110633490,-250.16,0.00029591,2]
[314234951,1708110633501,-970.41218244,0.000299,4]
[314234952,1708110633511,-1177.20626658,0.0003,4]
[314234953,1708110633521,-45118.80767357,0.0003,2]
[314234954,1708110633530,-1000.0,0.0003,2]
[314234955,1708110633541,-296.80662458,0.000301,2]
[314234956,1708110633551,-154.36,0.00030137,2]
[314234957,1708110633561,-979.17,0.0003027,2]
[314234958,1708110633570,-1437.72105907,0.0003028,28]
[314234959,1708110633580,-610.37709392,0.00030332,2]
[314234960,1708110633590,-958.78,0.00030578,2]
[314234961,1708110633601,-250.16,0.00031,2]
[314234962,1708110633611,-2617.0,0.000315,2]
[314234963,1708110633621,-19498.8590024,0.000318,2]
[314234964,1708110633633,-172.85,0.00031979,2]
[314234965,1708110633642,-1000.0,0.00032049,2]
[314234966,1708110633653,-958.78,0.00032221,2]
[314234967,1708110633663,-250.16,0.00032409,2]
[314234968,1708110633673,-979.17,0.00032534,2]
[314234969,1708110633683,-4874.71475059,0.00032747,3]
[314234970,1708110633695,-970.41218238,0.00032757,6]
[314234971,1708110633704,-5000.0,0.000329,2]
[314234972,1708110633714,-157.0,0.00033,2]
[314234973,1708110633723,-172.59291704,0.00033566,2]
[314234974,1708110633733,-170.29,0.0003378,2]
[314234975,1708110633743,-250.16,0.00033818,2]
[314234976,1708110633752,-958.78,0.00033865,2]
[314234977,1708110633762,-1852.42,0.00034257,2]
[314234978,1708110633772,-4874.71475059,0.0003451,6]
[314234979,1708110633781,-539.627874,0.0003452,2]
[314234980,1708110633791,-364.662208,0.0003452,2]
[314234981,1708110633801,-610.37709392,0.00034694,2]
[314234982,1708110633810,-9749.42950118,0.00034789,6]
[314234983,1708110633820,-809.441812,0.00034794,2]
[314234984,1708110633829,-546.993312,0.00034794,2]
[314234985,1708110633839,-979.17,0.00034798,2]
[314234986,1708110633848,-1079.255749,0.00034931,2]
[314234987,1708110633858,-729.324416,0.00034931,2]
[314234988,1708110633868,-4874.71475059,0.0003498,7]
[314234989,1708110633878,-4556.6718,0.0003499,2]
[314234990,1708110633888,-161.478,0.0003499,2]
[314234991,1708110633899,-3161.6703,0.0003499,2]
[314234992,1708110633909,-159.9808,0.0003499,2]
[314234993,1708110633919,-155.0,0.00035,4]
[314234994,1708110633929,-200.0,0.00035,7]
[314234995,1708110633939,-1349.069686,0.00035068,2]
[314234996,1708110633949,-911.655521,0.00035068,2]
[314234997,1708110633959,-24373.573753,0.0003508,7]
[314234998,1708110633969,-45230.96609356,0.0003509,2]
[314234999,1708110633979,-1000.0,0.00035254,2]
[314235000,1708110633988,-1888.697561,0.00035342,2]
[314235001,1708110633998,-1276.317729,0.00035342,2]
[314235002,1708110634008,-500.0,0.000356,2]
[314235003,1708110634017,-970.41218238,0.00035614,7]
[314235004,1708110634027,-4874.71475059,0.00035634,8]
[314235005,1708110634037,-2292.92021046,0.000358,2]
[314235006,1708110634050,-182.3974762,0.0003581,2]
[314235007,1708110634059,-531.33562592,0.0003581,2]
[314235008,1708110634069,-152.74855569,0.0003588,2]
[314235009,1708110634079,-121867.868765,0.0003589,8]
[314235010,1708110634088,-102047.78628335,0.000359,2]
[314235044,1708110640636,-159.81159687,0.00023075,2]
[314235045,1708110640646,-666.0,0.00035616,2]
[314235046,1708110640656,-1259.02976313,0.000359,2]
[314235047,1708110640716,-327.36000009,0.000359,2]
[314235062,1708110646284,-208.51696892,0.00023076,2]
[314235063,1708110646294,-208.51696892,0.00023076,2]
[314235064,1708110646303,-141365.82395343,0.000359,2]
[314235065,1708110646313,-152.74044294,0.0003591,5]
[314235066,1708110646322,-9749.42950118,0.0003599,8]
[314235067,1708110646331,-2158.511498,0.00036,2]
[314235068,1708110646340,-13671.56062311,0.00036,10]
[314235069,1708110646349,-1458.648833,0.00036,2]
[314235070,1708110646358,-548.96,0.00036021,2]
[314235071,1708110646367,-2865.85,0.00036329,2]
[314235072,1708110646377,-1000.0,0.000364,2]
[314235073,1708110646386,-14624.1442518,0.0003665,9]
[314235074,1708110646395,-11854.01224041,0.0003666,12]
[314235075,1708110646404,-18640.11030069,0.0003666,12]
[314235076,1708110646413,-2354.0168818,0.0003666,13]
[314235077,1708110646422,-8065.39891939,0.0003666,13]
[314235079,1708110646431,-196.38166492,0.00036776,9]
[314235081,1708110646440,-4874.71475059,0.0003679,9]
[314235083,1708110646449,-2029.63053334,0.000368,2]
[314235211,1708110991275,-1177.20626658,0.00031293,4]
[314235212,1708110991296,-767.79373342,0.00031294,3]
[314235216,1708111767103,-399.73194296,0.00024985,2]
[314235218,1708111799951,-414.60283298,0.00024899,2]
[314235219,1708111799970,-155.0,0.000249,2]
[314235220,1708111799989,-155.0,0.00024984,2]
[314235221,1708111800009,-451.00274977,0.00024985,2]
[314235222,1708111800030,-1250.0,0.00025,3]
[314235232,1708111832484,-417.03393785,0.00027,3]
[314235233,1708111832497,-882.96606215,0.00027,3]
[314235234,1708111832507,-163.23419956,0.00028899,2]
[314235235,1708111832517,-351.40105983,0.00029,3]
[314235236,1708111834414,-998.59894017,0.00029,3]
[314235237,1708111834424,-163.23419948,0.00029789,2]
[314235238,1708111834433,-228.10494949,0.00030406,2]
[314235239,1708111834477,-579.20505051,0.00030406,2]
[314235240,1708111834487,-163.23419948,0.0003068,2]
[314235241,1708111834496,-400.0,0.00030999,2]
[314235242,1708111834506,-150.0,0.00030999,2]
[314235243,1708111834516,-475.23874791,0.00031,3]
[314235244,1708111834528,-474.6688742,0.00031,3]
[314235245,1708111834541,-450.09237789,0.00031,3]
[314235246,1708111834550,-128.01340282,0.00031,2]
[314235247,1708111834567,-3832.1467073,0.00031,2]
[314235248,1708111834580,-748.44402773,0.00031,2]
[314235249,1708111834592,-3451.41586215,0.00031,2]
[314235250,1708111834602,-286.22533176,0.00031296,4]
[314235251,1708111834610,-499.99,0.00031296,2]
[314235252,1708111834620,-1279.7495,0.000313,2]
[314235253,1708111834629,-295.32469415,0.00031399,2]
[314235255,1708111838275,-326.98530585,0.00031399,2]
[314235256,1708111838284,-150.99,0.00031399,2]
[314235257,1708111838295,-2647.0,0.000314,2]
[314235258,1708111838305,-155.0,0.00031498,2]
[314235259,1708111838314,-557.04795219,0.00031498,2]
[314235260,1708111838324,-1143.0216601,0.00031498,3]
[314235261,1708111838334,-533.38120188,0.00031499,4]
[314235262,1708111838343,-413.43532746,0.000315,2]
[314235263,1708111838355,-280.44865762,0.000315,2]
[314235264,1708111838367,-19174.11601492,0.000315,2]
[314235265,1708111838377,-163.23419948,0.0003157,2]
[314235266,1708111838387,-1682.86,0.00032345,2]
[314235267,1708111838397,-150.0,0.00032442,2]
[314235268,1708111838407,-250.0,0.00032451,2]
[314235269,1708111838417,-163.23419948,0.0003246,2]
[314235270,1708111838426,-200.0,0.0003251,2]
[314235271,1708111838435,-200.0,0.00032522,2]
[314235272,1708111838445,-286.9,0.00032531,2]
[314235273,1708111838454,-807.31,0.00032669,2]
[314235274,1708111838463,-154.39,0.00032679,2]
[314235275,1708111838472,-500.0,0.00032803,2]
[314235276,1708111838481,-154.39,0.00032923,2]
[314235277,1708111838490,-23900.0,0.00033007,2]
[314235278,1708111838499,-2464.02,0.00033033,2]
[314235279,1708111838508,-500.0,0.00033034,2]
[314235280,1708111838518,-1000.0,0.00033034,2]
[314235281,1708111838527,-250.0,0.00033139,2]
[314235282,1708111838537,-154.39,0.00033166,2]
[314235283,1708111838551,-163.23419948,0.00033351,2]
[314235284,1708111838560,-560.0,0.00033376,3]
[314235285,1708111838569,-154.39,0.00033409,2]
[314235286,1708111838578,-154.39,0.00033652,2]
[314235287,1708111838587,-154.39,0.00033896,2]
[314235288,1708111838596,-200.49,0.00033981,2]
[314235289,1708111838605,-210.0,0.00034099,2]
[314235290,1708111838615,-1000.0,0.00034101,2]
[314235291,1708111838624,-1910.56,0.00034102,2]
[314235292,1708111838633,-250.0,0.00034133,111]
[314235293,1708111838642,-154.39,0.00034139,2]
[314235294,1708111838652,-1185.34,0.0003414,2]
[314235295,1708111838661,-211.05,0.00034169,2]
[314235296,1708111838671,-163.23419948,0.00034241,2]
[314235297,1708111838680,-170.29,0.00034371,2]
[314235298,1708111838689,-154.39,0.00034382,2]
[314235299,1708111838698,-200.0,0.00034383,2]
[314235300,1708111838708,-150.0,0.00034394,2]
[314235301,1708111838717,-2000.0,0.00034406,2]
[314235302,1708111838726,-2535.1,0.00034419,2]
[314235303,1708111838734,-6202.44,0.00034419,37]
[314235304,1708111838744,-3059.937,0.0003443,2]
[314235305,1708111838753,-255.73,0.00034436,2]
[314235306,1708111838762,-2415.472736,0.0003452,2]
[314235307,1708111838771,-637.147671,0.0003452,2]
[314235308,1708111838783,-569.015732,0.0003452,2]
[314235309,1708111838795,-203.45903132,0.00034694,2]
[314235310,1708111838804,-203.4590313,0.00034764,2]
[314235311,1708111838813,-3623.209104,0.00034794,2]
[314235312,1708111838823,-955.721506,0.00034794,2]
[314235313,1708111838833,-853.523598,0.00034794,2]
[314235314,1708111838842,-6825.747032,0.00034833,2]
[314235315,1708111838851,-534.43350035,0.00034833,2]
[314235316,1708111838860,-203.4590313,0.00034833,2]
[314235317,1708111838870,-90117.0426771,0.00034923,6]
[314235318,1708111838879,-152.74855569,0.00034923,2]
[314235319,1708111838888,-1135.65802738,0.0003493,2]
[314235320,1708111838898,-1233.10429479,0.0003493,2]
[314235321,1708111838907,-4830.945472,0.00034931,2]
[314235322,1708111838916,-1274.295342,0.00034931,2]
[314235323,1708111838925,-1138.031464,0.00034931,2]
[314235324,1708111838934,-5822.9895,0.00034933,2]
[314235325,1708111839165,-31663.00083381,0.00034933,2]
[314235326,1708111839340,-546.02160371,0.00034933,2]
[314235327,1708111839352,-2396.32,0.00034933,2]
[314235331,1708111840810,-286.89,0.00034933,2]
[314235332,1708111840871,-27810.0000008,0.00034933,2]
[314235333,1708111840982,-318.08209947,0.00034933,2]
[314235334,1708111840995,-601.5300001,0.00034933,2]
[314235335,1708111841006,-28604.0237867,0.00034933,2]
[314235336,1708111841018,-1557.975,0.00034933,2]
[314235413,1708111843224,-625.77660121,0.00034833,8]
[314235414,1708111843234,-2451.89167739,0.00034933,2]
[314235415,1708111843246,-23171.44805072,0.00034933,2]
[314235416,1708111843258,-5786.78726643,0.00034933,2]
[314235417,1708111843334,-4151.66135601,0.00034933,2]
[314235418,1708111843346,-6775.68251314,0.00034933,2]
[314235422,1708111846364,-161.478,0.00034823,2]
[314235423,1708111846374,-1230.56923341,0.00034933,2]
[314235424,1708111846488,-11380.31464704,0.00034933,2]
[314235425,1708111846585,-244623.69940148,0.00034933,2]
[314235440,1708112765094,999.999999,0.000231,2]
[314235445,1708112969149,-399.7401962,0.00025,3]
[314235467,1708113031436,-850.73469273,0.00024999,2]
[314235468,1708113031446,-378.44548443,0.00025,3]
[314235469,1708113031676,-471.81431937,0.00025,3]
[314235470,1708113031686,-557.04795219,0.00030753,2]
[314235471,1708113031696,-1043.91163765,0.00030754,4]
[314235472,1708113031706,-155.0,0.00030758,4]
[314235473,1708113031715,-772.81,0.00030759,2]
[314235474,1708113031725,-165.74748096,0.00031399,2]
[314235475,1708113031734,-1228.28310587,0.000314,2]
[314235476,1708113031746,-346.94999999,0.000314,2]
[314235477,1708113037949,-162.26817007,0.00031498,2]
[314235478,1708113037959,-150.0,0.00031499,2]
[314235479,1708113037968,-150.0,0.00031499,3]
[314235480,1708113037978,-150.99,0.00031499,2]
[314235481,1708113037987,-826.42690931,0.000315,2]
[314235482,1708113039955,-604.57016637,0.000315,2]
[314235483,1708113039968,-305.48983891,0.000315,2]
[314235484,1708113039983,-475.11826305,0.000315,2]
[314235485,1708113040004,-12972.22642114,0.000315,2]
[314235486,1708113041071,-267.29585261,0.000315,2]
[314235487,1708113041105,-2429.87254861,0.000315,2]
[314235488,1708113041114,-205.924883,0.00032,9]
[314235489,1708113041124,-265.78556839,0.00032,12]
[314235490,1708113041142,-34.20443161,0.00032,12]
[314235491,1708113041156,-150.99,0.00032,2]
[314235492,1708113041167,-155.0,0.00032071,2]
[314235493,1708113041177,-1572.23799218,0.00032263,2]
[314235494,1708113041191,-280.18200782,0.00032263,2]
[314235495,1708113041201,-208.21400675,0.00032284,2]
[314235496,1708113041218,-1649.66599325,0.00032284,2]
[314235497,1708113041230,-200.0,0.00032354,2]
[314235498,1708113041240,-500.0,0.0003238,2]
[314235499,1708113041249,-504.03,0.00032425,2]
[314235500,1708113041259,-150.0,0.00032447,2]
[314235501,1708113041270,-220.19,0.00032449,2]
[314235502,1708113041279,-2000.0,0.00032563,2]
[314235503,1708113041290,-500.0,0.00032908,2]
[314235504,1708113041300,-200.0,0.00033,2]
[314235505,1708113041309,-772.81,0.00033023,2]
[314235506,1708113041319,-1308.64115352,0.00033048,2]
[314235507,1708113041329,-504.95493302,0.00033061,2]
[314235508,1708113041339,-23900.0,0.00033071,2]
[314235509,1708113041349,-250.0,0.00033071,2]
[314235510,1708113041358,-800.0,0.00033096,2]
[314235511,1708113041367,-271.31605478,0.00033192,2]
[314235512,1708113041377,-165.74748096,0.00033244,2]
[314235513,1708113041386,-143.73734112,0.00033304,2]
[314235514,1708113041399,-1164.9038124,0.00033304,2]
[314235515,1708113041408,-155.0,0.00033441,2]
[314235516,1708113041418,-169.15,0.00033589,2]
[314235517,1708113041427,-1308.64115352,0.00033663,2]
[314235518,1708113041436,-183.88563964,0.00033869,2]
[314235519,1708113041448,-1124.75551388,0.00033869,2]
[314235520,1708113041457,-150.0,0.00033892,2]
[314235521,1708113041467,-1317.83142382,0.00033962,2]
[314235522,1708113041478,-1317.83142382,0.00033977,2]
[314235523,1708113041488,-504.03,0.00034069,2]
[314235524,1708113041500,-499.99,0.00034129,2]
[314235525,1708113041510,-1308.64115352,0.00034231,2]
[314235526,1708113041520,-1308.64115352,0.00034305,2]
[314235527,1708113041530,-1317.83142382,0.00034319,2]
[314235528,1708113041540,-1652.842868,0.0003452,2]
[314235529,1708113041557,-446.00337,0.0003452,2]
[314235530,1708113041573,-513.84743386,0.0003452,2]
[314235531,1708113041594,-331.24824014,0.0003452,2]
[314235532,1708113041605,-10161.5976,0.00034533,2]
[314235533,1708113041614,-2525.2473,0.00034533,2]
[314235534,1708113041623,-2118.98400394,0.00034533,2]
[314235536,1708113042342,-567.551468,0.00034533,2]
[314235537,1708113042354,-400.36535376,0.00034533,2]
[314235538,1708113042366,-446.51173508,0.00034533,2]
[314235539,1708113042451,-2573.13014704,0.00034533,2]
[314235540,1708113042510,-1238.09837905,0.00034533,2]
[314235541,1708113042620,-989.30707222,0.00034533,2]
[314235542,1708113042632,-2756.5299557,0.00034533,2]
[314235543,1708113042643,-2820.25907148,0.00034533,2]
[314235545,1708113045544,-655.44762712,0.00034532,2]
[314235546,1708113045553,-25578.01411373,0.00034533,2]
[314235547,1708113045562,-510.894,0.00034533,2]
[314235548,1708113045572,-2173.9682,0.00034533,2]
[314235549,1708113045582,-1308.64115352,0.00034543,2]
[314235550,1708113045592,-1317.83142382,0.00034564,2]
[314235551,1708113045601,-2500.0,0.00034615,2]
[314235552,1708113045611,-10543.8631912,0.00034633,2]
[314235553,1708113045659,-1539.85648596,0.00034633,2]
[314235554,1708113045690,-15220.32429564,0.00034633,2]
[314235555,1708113045702,-5052.65612485,0.00034633,2]
[314235560,1708113070046,276574.39441825,0.00023,2]
[314235561,1708113070078,51353.41351727,0.00023,2]
[314235562,1708113070103,1263478.15581365,0.00023,2]
[314235564,1708113455693,-7434.01914723,0.0002313,2]
[314235567,1708113657167,223.975961,0.000229,2]
[314235583,1708114231624,-378.605,0.00023698,2]
[314235584,1708114231645,-472.12969273,0.00023698,2]
[314235585,1708114231655,-155.0,0.00023698,2]
[314235586,1708114231664,-414.60283298,0.00023699,2]
[314235587,1708114231674,-217.96215078,0.000237,2]
[314235588,1708114231683,-1067.34537483,0.00023785,2]
[314235589,1708114231693,-364.70865295,0.00023792,2]
[314235590,1708114231702,-152.25469389,0.000238,2]
[314235591,1708114231712,-155.0,0.00023898,2]
[314235592,1708114231721,-150.0,0.00023899,2]
[314235593,1708114231730,-1404.31970663,0.000239,2]
[314235594,1708114231742,-2592.42896,0.000239,2]
[314235595,1708114231757,-8392.25133337,0.000239,2]
[314235596,1708114231767,-152.25469376,0.00024632,2]
[314235597,1708114231776,-550.0,0.00025,3]
[314235598,1708114231785,-2774.2158356,0.0002509,2]
[314235599,1708114231795,-10424.43947608,0.0002509,2]
[314235600,1708114231805,-299.99,0.0002509,7]
[314235601,1708114231814,-1113.29,0.0002509,2]
[314235602,1708114231823,-499.99,0.0002509,2]
[314235603,1708114231832,-150.99,0.0002509,2]
[314235604,1708114231842,-152.25469376,0.00025463,2]
[314235605,1708114231852,-210.0,0.00026289,2]
[314235606,1708114231862,-152.25469376,0.00026295,2]
[314235607,1708114231871,-448.17224542,0.000263,2]
[314235608,1708114231881,-600.0,0.00027,3]
[314235609,1708114231890,-5094.05466202,0.00027049,2]
[314235610,1708114231900,-20000.0,0.0002705,2]
[314235611,1708114231909,-152.25469376,0.00027127,2]
[314235612,1708114231919,-155.0,0.00027397,2]
[314235613,1708114231928,-152.25469376,0.00027958,2]
[314235614,1708114231938,-155.0,0.00028767,2]
[314235615,1708114231947,-152.25469376,0.0002879,2]
[314235616,1708114231957,-650.0,0.00029,3]
[314235617,1708114231967,-930.54,0.00029402,2]
[314235619,1708114231976,-152.25469376,0.00029622,2]
[314235621,1708114231986,-155.0,0.0003,4]
[314235622,1708114231995,-1548.23,0.00030084,2]
[314235623,1708114232005,-822.88059394,0.000301,2]
[314235624,1708114232014,-250.0,0.00030127,2]
[314235625,1708114232023,-155.0,0.00030137,2]
[314235626,1708114232033,-250.0,0.00030179,2]
[314235627,1708114232042,-23900.0,0.00030245,2]
[314235628,1708114232051,-747.91,0.00030343,2]
[314235629,1708114232060,-162.82,0.00030357,2]
[314235630,1708114232070,-152.25469376,0.00030453,2]
[314235631,1708114232079,-150.0,0.00030468,2]
[314235632,1708114232088,-159.62,0.00030476,2]
[314235633,1708114232098,-360.0,0.00030485,2]
[314235634,1708114232107,-1000.0,0.00030555,2]
[314235635,1708114232116,-11163.41,0.00030568,2]
[314235636,1708114232126,-200.0,0.00030674,2]
[314235637,1708114232135,-171.0,0.00030705,2]
[314235638,1708114232144,-1197.57,0.00030705,2]
[314235639,1708114232154,-2970.33,0.0003088,2]
[314235640,1708114232163,-685.16,0.00030885,2]
[314235641,1708114232173,-16023.0898373,0.000309,2]
[314235642,1708114232183,-5929.49,0.00031004,2]
[314235643,1708114232192,-250.0,0.0003102,2]
[314235644,1708114232202,-750.0,0.00031041,2]
[314235645,1708114232211,-154.02,0.00031044,2]
[314235646,1708114232221,-2000.0,0.00031077,2]
[314235647,1708114232230,-200.0,0.00031082,2]
[314235648,1708114232240,-200.0,0.00031091,2]
[314235649,1708114232250,-1668.07,0.00031124,2]
[314235650,1708114232259,-640.0,0.00031125,2]
[314235651,1708114232269,-361.78,0.00031133,2]
[314235652,1708114232278,-500.0,0.00031152,2]
[314235653,1708114232288,-150.0,0.00031166,2]
[314235654,1708114232298,-154.02,0.00031266,2]
[314235655,1708114232307,-152.25469376,0.00031285,2]
[314235656,1708114232317,-15645.02,0.00031401,2]
[314235657,1708114232326,-154.02,0.00031487,2]
[314235658,1708114232336,-154.06,0.00031512,2]
[314235659,1708114232345,-154.06,0.00031662,2]
[314235660,1708114232356,-930.54,0.00031666,2]
[314235661,1708114232365,-154.02,0.00031709,2]
[314235662,1708114232374,-154.06,0.00031811,2]
[314235663,1708114232383,-162.82,0.00031875,2]
[314235664,1708114232393,-154.02,0.00031931,2]
[314235665,1708114232402,-154.06,0.0003196,2]
[314235666,1708114232411,-154.06,0.00032109,2]
[314235667,1708114232420,-152.25469376,0.00032117,2]
[314235668,1708114232430,-154.02,0.00032153,2]
[314235669,1708114232439,-154.06,0.00032259,2]
[314235670,1708114232449,-154.02,0.00032374,2]
[314235671,1708114232459,-154.06,0.00032408,2]
[314235672,1708114232468,-154.06,0.00032557,2]
[314235673,1708114232477,-154.02,0.00032596,2]
[314235674,1708114232487,-361.78,0.00032689,2]
[314235675,1708114232499,-154.06,0.00032707,2]
[314235676,1708114232509,-155.65,0.00032737,2]
[314235677,1708114232518,-1668.07,0.00032767,2]
[314235678,1708114232527,-154.02,0.00032818,2]
[314235679,1708114232537,-169.24,0.00032826,2]
[314235680,1708114232547,-154.06,0.00032856,2]
[314235681,1708114232556,-5000.0,0.000329,2]
[314235682,1708114232565,-152.25469376,0.00032948,2]
[314235683,1708114232577,-154.06,0.00033005,2]
[314235684,1708114232586,-154.02,0.0003304,2]
[314235685,1708114232596,-154.06,0.00033154,2]
[314235686,1708114232608,-1342.48055533,0.00033224,2]
[314235687,1708114232618,-154.02,0.00033261,2]
[314235688,1708114232627,-155.08,0.0003332,2]
[314235689,1708114232637,-150.0,0.0003334,20]
[314235690,1708114232647,-162.82,0.00033393,2]
[314235691,1708114232657,-154.02,0.00033483,2]
[314235692,1708114232667,-1342.48055533,0.00033618,2]
[314235693,1708114232676,-154.02,0.00033705,2]
[314235694,1708114232686,-152.25469376,0.0003378,2]
[314235695,1708114232696,-1342.48055533,0.00033787,2]
[314235696,1708114232706,-155.65,0.00033828,2]
[314235697,1708114232715,-154.02,0.00033927,2]
[314235698,1708114232724,-930.54,0.0003393,2]
[314235699,1708114232733,-1342.48055533,0.00033996,2]
[314235700,1708114232743,-6000.09215826,0.00034,15]
[314235701,1708114232752,-510.894,0.00034088,2]
[314235702,1708114232761,-22103.6443,0.00034133,7]
[314235703,1708114232771,-1000.0,0.00034133,2]
[314235704,1708114232782,-2500.0,0.00034133,2]
[314235705,1708114232791,-1649.79305874,0.00034133,6]
[314235706,1708114232802,-1426.50555876,0.00034139,2]
[314235707,1708114232811,-154.02,0.00034148,2]
[314235708,1708114232820,-155.67,0.00034192,2]
[314235709,1708114232829,-53532.26513544,0.00034223,6]
[314235714,1708114237539,-89.59712106,0.00034223,6]
[314235715,1708114237548,-152.7485557,0.00034223,2]
[314235716,1708114237558,-159.9808,0.00034233,2]
[314235717,1708114237567,-245000.0,0.00034233,2]
[314235718,1708114237577,-4110.9535,0.00034233,2]
[314235719,1708114237586,-14047.89978042,0.00034233,2]
[314235720,1708114237607,-85952.10021958,0.00034233,2]
[314235721,1708114237617,-500.0,0.00034233,2]
[314235722,1708114237626,-361.78,0.00034246,2]
[314235723,1708114237635,-1342.48055533,0.00034268,2]
[314235724,1708114237644,-360.0,0.00034296,2]
[314235725,1708114237654,-93745.2555,0.00034333,2]
[314235726,1708114237664,-1996.8931,0.00034333,2]
[314235727,1708114237674,-4556.6718,0.00034333,2]
[314235728,1708114237683,-316.7326,0.00034333,2]
[314235729,1708114237692,-1426.50555876,0.00034359,2]
[314235730,1708114237702,-17840.29947448,0.00034368,2]
[314235731,1708114237712,-1668.07,0.00034411,2]
[314235734,1708114237968,-626.44937518,0.00034431,4]
[314235735,1708114237978,-6854.4319476,0.00034432,2]
[314235736,1708114237987,-595.497544,0.0003452,2]
[314235737,1708114237997,-557.504212,0.0003452,2]
[314235738,1708114238006,-6788.183485,0.0003452,2]
[314235739,1708114238015,-780.505897,0.0003452,2]
[314235740,1708114238023,-5019.176642,0.0003452,2]
[314235741,1708114238033,-1010.75,0.00034521,2]
[314235742,1708114238042,-1273.87009574,0.0003453,2]
[314235743,1708114238051,-321.8701,0.00034533,2]
[314235744,1708114238061,-155.0,0.00034533,2]
[314235745,1708114238070,-1725.0038,0.00034533,2]
[314235746,1708114238079,-1132.8581,0.00034533,2]
[314235747,1708114238089,-152.25469376,0.00034612,2]
[314235748,1708114238099,-166.29,0.00034612,2]
[314235749,1708114238109,-3000.0,0.00034633,2]
[314235750,1708114238119,-459.88253654,0.00034694,2]
[314235751,1708114238128,-534.43350034,0.00034731,2]
[314235752,1708114238137,-1000.0,0.00034732,5]
[314235753,1708114238146,-2479.264303,0.00034794,2]
[314235754,1708114238155,-669.005055,0.00034794,2]
[314235755,1708114238164,-1267.643511,0.00034794,2]
[314235756,1708114238174,-893.246316,0.00034794,2]
[314235757,1708114238183,-836.256318,0.00034794,2]
[314235758,1708114238192,-10182.275227,0.00034794,2]
[314235759,1708114238201,-1170.758845,0.00034794,2]
[314235760,1708114238210,-7528.764964,0.00034794,2]
[314235761,1708114238219,-11788.28830916,0.00034799,2]
[314235762,1708114238229,-11788.28830914,0.00034799,2]
[314235763,1708114238238,-210.0,0.00034831,2]
[314235764,1708114238247,-1426.50555876,0.00034873,2]
[314235765,1708114238256,-150.0,0.000349,2]
[314235766,1708114238266,-2631.90009564,0.000349,2]
[314235767,1708114238275,-162.82,0.0003491,2]
[314235768,1708114238284,-155.65,0.00034919,2]
[314235769,1708114238293,-204.20811932,0.00034931,4]
[314235770,1708114238302,-3305.685737,0.00034931,2]
[314235771,1708114238311,-892.00674,0.00034931,2]
[314235772,1708114238320,-1690.191348,0.00034931,2]
[314235773,1708114238329,-1190.995088,0.00034931,2]
[314235774,1708114238338,-1115.008424,0.00034931,2]
[314235775,1708114238347,-13576.36697,0.00034931,2]
[314235776,1708114238356,-1561.011794,0.00034931,2]
[314235777,1708114238365,-10038.353285,0.00034931,2]
[314235778,1708114238375,-2000.0,0.00034933,2]
[314235779,1708114238384,-200.0,0.00034933,2]
[314235780,1708114238393,-2000.0,0.00034933,2]
[314235781,1708114238403,-200.0,0.00034933,2]
[314235782,1708114238412,-1342.48055533,0.00034967,2]
[314235783,1708114238421,-38373.29974293,0.00035,4]
[314235784,1708114238430,-640.0,0.00035016,2]
[314235785,1708114238439,-6038.68184,0.00035068,2]
[314235786,1708114238448,-1592.869177,0.00035068,2]